Cogmind - Beta 15 @@@ ROGUE MODE // 2025.07.02 @ 01:45:56 Player: Aaron Result: Core destroyed Performance ------------- Evolutions (2) 1000 Regions Visited (7) 1400 Robots Destroyed (74) 370 Value Destroyed (2255) 2255 Prototype IDs (31) 620 Alien Tech Used (0) 0 Bonus (1030) 1030 TOTAL SCORE: 6675 Bonus ------- High Alert Combat Kills 30 Entered Garrisons 200 Used RIF Installer 500 Aligned with FarCom 300 Cogmind --------- Core Integrity 0/550 Matter 300/300 Energy 100/100 System Corruption 57% Temperature Cool (0) Movement Core (600) Ox11 Location -8/Storage Parts ------- > --- POWER (1) -------- (None) > --- PROPULSION (3) --- (None) > --- UTILITY (5) ------ Heavy Reactive Plating > --- WEAPON (2) ------- (None) > --- INVENTORY (5) ---- Faulty Improved VTOL Module Improved VTOL Module Improved VTOL Module Authchip [R/Combat] EM Shotgun Peak State ------------ > --- POWER ------------ Nuclear Core > --- PROPULSION ------- Light Treads Light Treads Improved Treads > --- UTILITY ---------- Medium Storage Unit Superbattery Improved Power Shielding Heavy Reactive Plating > --- WEAPON ----------- Enhanced Autogun Great Maul > --- INVENTORY -------- Light Treads Improved VTOL Module Improved VTOL Module Improved VTOL Module Authchip [R/NC] Authchip [R/Combat] Authchip [R/Combat] Relay Coupler [Swarmer] EM Shotgun Phase Cannon [Rating: 41] Favorites ----------- Power Nuclear Core Engine Ion Engine Power Core Nuclear Core Propulsion Light Treads Treads Light Treads Utility Medium Storage Unit Device Improved Heat Sink Storage Medium Storage Unit Protection Improved Light Armor Plating Weapon EM Pulse Gun Energy Gun EM Pulse Gun Energy Cannon Beam Cannon Ballistic Gun Enhanced Autogun Impact Weapon Great Maul Build | -11 -10 -10 -10 -9 -8 -8 -8 ------- Run | Yrd Mat Min Exi Min Mat Gar Sto Slots Evolved 4 | . . . . . 4 . . Power . | . . . . . . . . Propulsion 1 | . . . . . 1 . . Utility 3 | . . . . . 3 . . Weapon . | . . . . . . . . Parts Attached 43 | 6 11 1 1 . 16 8 . Power 5 | 1 . 1 . . 2 1 . Engine 2 | 1 . 1 . . . . . Core 3 | . . . . . 2 1 . Reactor . | . . . . . . . . Propulsion 12 | 2 2 . . . 5 3 . Treads 12 | 2 2 . . . 5 3 . Leg . | . . . . . . . . Wheel . | . . . . . . . . Hover . | . . . . . . . . Flight . | . . . . . . . . Utility 11 | 1 3 . 1 . 4 2 . Device 3 | . 2 . . . 1 . . Storage 3 | 1 1 . 1 . . . . Processor . | . . . . . . . . Hackware . | . . . . . . . . Protection 5 | . . . . . 3 2 . Artifact . | . . . . . . . . Weapon 15 | 2 6 . . . 5 2 . Energy Gun 6 | 2 3 . . . 1 . . Energy Cannon 6 | . 3 . . . 1 2 . Ballistic Gun 1 | . . . . . 1 . . Ballistic Cannon . | . . . . . . . . Launcher . | . . . . . . . . Special Weapon . | . . . . . . . . Impact Weapon 2 | . . . . . 2 . . Slashing Weapon . | . . . . . . . . Piercing Weapon . | . . . . . . . . Special Melee Weapon . | . . . . . . . . Unidentified Prototypes . | . . . . . . . . Corrupted Parts 2 | . . . . . 2 . . System Corruption 10 | . . . . . 10 . . Parts Lost 23 | . 3 1 . . 4 3 12 Power 3 | . . 1 . . 1 . 1 Propulsion 7 | . 2 . . . 1 . 4 Utility 6 | . . . . . . 2 4 Weapon 7 | . 1 . . . 2 1 3 Highest Loss Streak 9 | . 2 1 . . 3 2 9 To Critical Strikes . | . . . . . . . . Average Backups 7 | . 5 6 7 7 9 9 9 Power . | . . . . . 1 . . Propulsion 2 | . 2 2 2 2 2 3 3 Utility 1 | . . . . . . 3 3 Weapon 2 | . 2 4 5 5 4 1 1 Tool/Special . | . . . . . . . . Unused Backups 10 | . . . . 1 1 3 5 Power 1 | . . . . . 1 . . Propulsion 3 | . . . . . . . 3 Utility 3 | . . . . . . 1 2 Weapon 3 | . . . . 1 . 2 . Tool/Special . | . . . . . . . . Average Slot Usage (%) 92 | . 92 99 100 100 95 89 65 Engine 6 | . 14 13 14 14 1 . . Core 4 | . . . . . 7 8 8 Treads 26 | . 28 28 28 28 27 26 20 Device 6 | . 7 14 10 . 8 . . Storage 16 | . 14 14 17 28 18 18 11 Protection 8 | . . . . . 15 16 9 Energy Gun 12 | . 16 28 28 28 5 3 1 Energy Cannon 3 | . 11 . . . 3 2 . Ballistic Gun 4 | . . . . . 4 8 8 Impact Weapon 2 | . . . . . 3 3 6 Peak Build Rating 41 | 6 9 9 16 17 36 41 38 Average Rating 20 | 5 7 8 10 16 30 33 28 On Entrance 16 | . 6 9 9 16 16 36 37 Naked Turns . | . . . . . . . . Heaviest Build 63 | 14 22 18 21 21 40 63 63 Greatest Support 63 | 40 40 40 40 40 63 63 63 Greatest Overweight (x) 1 | . . . . . . . 1 Average Overweight (x) . | . . . . . . . . Largest Inventory Capacity 10 | 8 10 10 10 10 10 10 10 Average Capacity 9 | 7 9 10 10 10 10 10 9 Most Carried 10 | . 8 7 7 9 10 10 10 Average Carried 7 | . 5 6 7 7 9 9 9 Final Capacity 10 | 8 10 10 10 10 10 10 5 Final Carried 10 | . 6 7 7 8 8 10 5 Class Distribution -------------------- 55% | Mutant 44% | Scavenger-Mutant Dominant Class ---------------- Mutant | -10/Materials Scavenger-Mutant | -10/Mines Scavenger-Mutant | -10/Exiles Scavenger-Mutant | -9/Mines Scavenger-Mutant | -8/Materials Mutant | -8/Garrison Mutant | -8/Storage Resources | -11 -10 -10 -10 -9 -8 -8 -8 ----------- Run | Yrd Mat Min Exi Min Mat Gar Sto Matter Collected 1168 | 260 170 10 . 10 319 373 26 Remotely . | . . . . . . . . Salvage Created 2792 | 229 697 54 . 224 732 748 108 Parts 135 | 12 44 6 . 13 28 28 4 Haulers Intercepted 3 | . 2 . . . 1 . . Recyclers Shooed 6 | . 4 . . 1 1 . . Parts Field Recycled . | . . . . . . . . Retrieved Matter . | . . . . . . . . Parts Self-Destructed . | . . . . . . . . Prevented . | . . . . . . . . Kills | -11 -10 -10 -10 -9 -8 -8 -8 ------- Run | Yrd Mat Min Exi Min Mat Gar Sto Combat Hostiles Destroyed 47 | . 11 3 . 6 11 15 1 Melee 4 | . . . . . 4 . . Guns 23 | . 4 3 . 6 5 5 . Cannons 12 | . 6 . . . . 6 . AOE 5 | . . . . . 2 3 . Classes Destroyed 13 | 3 5 . . . 2 3 . Worker 6 | 2 3 . . . 1 . . Builder 4 | . 1 . . . 1 . 2 Tunneler 4 | 4 . . . . . . . Hauler 3 | . 2 . . . 1 . . Recycler 5 | 1 2 . . 1 1 . . Operator 4 | . 2 . . . 1 . 1 Watcher 1 | . . . . . . 1 . Swarmer 11 | . 4 3 . 4 . . . Cutter 2 | . . . . . . 2 . Grunt 26 | . 7 . . 2 9 8 . Brawler 1 | . . . . . 1 . . Duelist 1 | . . . . . . 1 . Sentry 6 | . . . . . 1 4 1 Best Kill Streak 6 | 3 6 3 . 4 5 5 2 Combat Bots Only 5 | . 5 3 . 4 3 5 1 Max Kills in Single Turn 2 | 1 1 1 . 1 2 2 1 Gunslinging . | . . . . . . . . Exploded 2 | . . . . . 2 2 . Melee 1 | . . . . . 1 . . Uniques/NPCs Destroyed . | . . . . . . . . Combat | -11 -10 -10 -10 -9 -8 -8 -8 -------- Run | Yrd Mat Min Exi Min Mat Gar Sto Hostile Shots Fired 241 | . 48 9 . 21 72 58 33 Missed 64 | . 12 2 . 5 18 18 9 Hits 177 | . 36 7 . 16 54 40 24 Melee 9 | . . . . . 5 4 . Projectile 168 | . 36 7 . 16 49 36 24 AOE 3 | . 1 . . . . 2 . Critical Strikes 8 | . . . . . 3 5 . Part Disruptions 1 | . 1 . . . . . . Damage Taken 4496 | . 475 59 . 150 1050 785 1977 Core 660 | . 68 . . 20 77 89 406 Absorbed by Shields . | . . . . . . . . Redirected to Shielding 5 | . . . . . . 5 . Ignored by Resistances 80 | . . . . . . . 80 Core Remaining (%) 82 | 100 . . . 64 . . . Volleys Fired 175 | 18 59 5 . 14 43 36 . Largest 2 | 2 2 2 . 2 2 2 . Hottest 120 | 100 120 80 . 80 105 110 . Shots Fired 323 | 36 109 10 . 28 65 74 1 Gun 243 | 36 66 10 . 28 53 49 1 Cannon 80 | . 43 . . . 12 25 . Launcher . | . . . . . . . . Special . | . . . . . . . . Kinetic 71 | . . . . . 31 39 1 Thermal 97 | 36 44 . . . 12 5 . Explosive . | . . . . . . . . Electromagnetic 155 | . 65 10 . 28 22 30 . Robot Hit Streak 11 | 8 10 2 . 10 11 10 2 Robot Miss Streak 6 | 2 6 2 . 4 4 2 . Penetration Max . | . . . . . . . . Secondary Targets 3 | . 1 1 . 1 . . . Max Gunslinging Chain 1 | . 1 1 . 1 . . . Shots Hit Robots 218 | 25 60 5 . 18 54 48 8 Core Hits 96 | 8 23 3 . 8 27 26 1 Critical Kills 2 | . 1 . . . 1 . . Critical Parts Destroyed 7 | . . . . . 4 . 3 Critical Strikes 12 | 1 2 . . . 6 . 3 Burn 1 | 1 . . . . . . . Meltdown 1 | . 1 . . . . . . Corrupt 1 | . 1 . . . . . . Smash 9 | . . . . . 6 . 3 Melee Attacks 66 | . . . . . 27 8 31 Impact 66 | . . . . . 27 8 31 Slashing . | . . . . . . . . Piercing . | . . . . . . . . Sneak Attacks 4 | . . . . . 1 1 2 Combat Hostiles . | . . . . . . . . Follow-up Attacks . | . . . . . . . . Damage Inflicted 4722 | 314 1046 89 . 244 1339 1327 363 Guns 2123 | 314 483 53 . 244 511 502 16 Cannons 996 | . 436 . . . 104 456 . Explosions 556 | . 127 36 . . 133 260 . Melee 1017 | . . . . . 591 109 317 Ramming 30 | . . . . . . . 30 Kinetic 683 | . . . . . 297 370 16 Thermal 1500 | 314 563 36 . . 237 350 . Explosive . | . . . . . . . . Electromagnetic 1492 | . 483 53 . 244 214 498 . Impact 1017 | . . . . . 591 109 317 Slashing . | . . . . . . . . Piercing . | . . . . . . . . Highest Corruption 57 | . . . . . 10 10 57 Average Corruption 11 | . . . . . 4 10 24 Corruption Purged . | . . . . . . . . Corruption Blocked . | . . . . . . . . Effects 79 | . . . . . 6 55 18 Message Errors 24 | . . . . . 2 17 5 Matter Fused 16 | . . . . . 2 11 3 Heat Flow Errors 7 | . . . . . . 4 3 Energy Discharges 6 | . . . . . . 4 2 Parts Rejected 1 | . . . . . . 1 . Parts Fused 1 | . . . . . . . 1 Data Loss (minor) 11 | . . . . . 1 9 1 Data Loss (major) 5 | . . . . . . 4 1 Misfires 4 | . . . . . . 3 1 Alerts 1 | . . . . . . 1 . Misdirections 1 | . . . . . . . 1 Weapon Failures 2 | . . . . . 1 1 . Overload Shots . | . . . . . . . . Overflow Damage 605 | . 36 16 . . 291 88 174 Projectiles 13 | . 12 . . . . 1 . Explosions 98 | . 24 16 . . 58 . . Melee 494 | . . . . . 233 87 174 Knockbacks 3 | . . . . . 1 . 2 Impact 3 | . . . . . 1 . 2 Kinetic . | . . . . . . . . Secondary . | . . . . . . . . Self-Inflicted Damage 326 | . 76 . . . 164 56 30 Shots 5 | . 2 . . . 2 1 . Rammed . | . . . . . . . . Targets Rammed . | . . . . . . . . Kicked . | . . . . . . . . Crushed . | . . . . . . . . Highest Temperature 436 | 351 436 . . 162 57 421 279 Average Temperature 120 | 117 149 . . 71 22 137 111 Received Heat Transfer 1026 | . 135 . . 36 432 306 117 Effects 10 | . 6 . . . . 4 . Shutdowns 2 | . 2 . . . . . . Energy Bleed 1 | . . . . . . 1 . Interference 2 | . 2 . . . . . . Matter Decay 2 | . 2 . . . . . . Damage (major) 3 | . . . . . . 3 . Siege Activations . | . . . . . . . . Martial Activations . | . . . . . . . . Shielding Activations . | . . . . . . . . Robots Disrupted . | . . . . . . . . Combat Hostiles . | . . . . . . . . Robots Corrupted 5 | . . . . . . 2 3 Combat Hostiles 2 | . . . . . . 1 1 Parts Fried 13 | . 1 . . . 1 7 4 Impact Corruptions 18 | . . . . . 7 3 8 Robots Melted 1 | . 1 . . . . . . Combat Hostiles 1 | . 1 . . . . . . Parts Melted 7 | 4 1 . . . 2 . . Heat Transferred 2907 | 999 1175 50 . . 322 361 . Parts Sabotaged . | . . . . . . . . Parts Stolen . | . . . . . . . . Parts Stripped . | . . . . . . . . Power Chain Reactions 10 | . 4 1 . . 2 3 . Alert | -11 -10 -10 -10 -9 -8 -8 -8 ------- Run | Yrd Mat Min Exi Min Mat Gar Sto Maximum Alert Level 2 | . 1 . . . 1 2 1 Low Security (%) 62 | 100 81 100 . 100 88 19 2 Level 1 20 | . 18 . . . 11 26 97 Level 2 16 | . . . . . . 53 . Level 3 . | . . . . . . . . Level 4 . | . . . . . . . . Level 5 . | . . . . . . . . High Security . | . . . . . . . . Max Security . | . . . . . . . . Peak Influence 692 | 15 229 129 . 123 218 692 354 Initial 337 | . . 66 . . 37 126 337 Average 187 | . 120 44 . 90 76 403 297 Influence Increases 1998 | 35 487 73 . 148 518 596 141 Destroy 0b10 Robot/C 940 | . 220 60 . 120 220 300 20 Destroy 0b10 Robot/NC 135 | 35 50 . . 5 25 5 15 Destroy Leader 166 | . 64 10 . 20 42 20 10 Successful Hack 47 | . 16 . . 3 14 14 . Select Force Hacks 30 | . . . . . 30 . . Disable Machine 75 | . 45 . . . 30 . . Anti-Garrison Action 200 | . . . . . . 200 . Destroy Structure 120 | . 17 3 . . 37 57 6 Lose Combat Pursuer 285 | . 75 . . . 120 . 90 Influence Decreases 1800 | 35 316 244 . 50 422 98 635 Entered New Map 589 | . . 105 . . 61 68 355 Time Decay 981 | 35 286 129 . 50 321 . 160 Lost Part 230 | . 30 10 . . 40 30 120 Squads Dispatched 11 | . 6 . . 1 2 . 2 Investigation 7 | . 4 . . 1 2 . . Extermination . | . . . . . . . . Reinforcement 4 | . 2 . . . . . 2 Assault . | . . . . . . . . Garrison . | . . . . . . . . Intercept . | . . . . . . . . Searches Triggered . | . . . . . . . . Construction Impeded 1 | . . . . . . . 1 Haulers Reinforced . | . . . . . . . . Active Scanning Responses . | . . . . . . . . Cargo Convoy Interrupts . | . . . . . . . . Stealth | -11 -10 -10 -10 -9 -8 -8 -8 --------- Run | Yrd Mat Min Exi Min Mat Gar Sto Distress Signals 2 | . . . . . 1 . 1 Communications Jammed . | . . . . . . . . Distress Signals . | . . . . . . . . Times Spotted 71 | . 24 2 . 5 20 16 4 Peak Tracking Total 5 | . 5 2 . 3 5 5 4 Tactical Retreats 12 | . 3 . . . 6 . 3 Traps | -11 -10 -10 -10 -9 -8 -8 -8 ------- Run | Yrd Mat Min Exi Min Mat Gar Sto Traps Triggered 6 | . 2 . . . . 2 2 Indirectly . | . . . . . . . . Trap Hack Attempts . | . . . . . . . . Triggered . | . . . . . . . . Disarmed . | . . . . . . . . Reprogrammed . | . . . . . . . . Reused . | . . . . . . . . Traps Extracted . | . . . . . . . . Installed . | . . . . . . . . Triggered . | . . . . . . . . Machines | -11 -10 -10 -10 -9 -8 -8 -8 ---------- Run | Yrd Mat Min Exi Min Mat Gar Sto Machines Disabled 8 | . 3 . . . 2 3 . Max in Single Turn 2 | . 1 . . . 2 1 . Garrison Relay 2 | . . . . . . 2 . Machines Repaired . | . . . . . . . . Machines Dismantled . | . . . . . . . . Machines Sabotaged . | . . . . . . . . Overloaded Fab Kills . | . . . . . . . . Hacking | -11 -10 -10 -10 -9 -8 -8 -8 --------- Run | Yrd Mat Min Exi Min Mat Gar Sto Machines Accessed 20 | . 6 . 5 1 6 2 . Terminals 10 | . 4 . . 1 3 2 . Fabricators . | . . . . . . . . Repair Stations 2 | . 1 . . . 1 . . Recycling Units 1 | . 1 . . . . . . Scanalyzers 1 | . . . . . 1 . . Garrison Access 1 | . . . . . 1 . . Total Hacks 103 | . 22 . 50 6 22 3 . Successful 88 | . 16 . 50 2 18 2 . Failed 15 | . 6 . . 4 4 1 . Catastrophic 2 | . . . . 2 . . . Database Lockouts . | . . . . . . . . Manual 27 | . 9 . 2 7 8 1 . Terminals 30 | . 13 . . 6 8 3 . Fabricators . | . . . . . . . . Repair Stations 7 | . 4 . . . 3 . . Recycling Units 5 | . 5 . . . . . . Scanalyzers 7 | . . . . . 7 . . Garrison Access 4 | . . . . . 4 . . Terminal Hacks 62 | . 6 . 50 . 4 2 . Record 49 | . . . 49 . . . . Prototype ID Bank 4 | . 2 . . . 2 . . Branch Access Points 1 | . 1 . . . . . . Emergency Access Points 1 | . . . . . . 1 . Terminal Index 1 | . 1 . . . . . . Dispatch Records 1 | . 1 . . . . . . Hauler Manifests 1 | . . . . . 1 . . Zone Layout 2 | . 1 . . . 1 . . Garrison Registry 1 | . . . . . . 1 . Proto ID Catalog 1 | . . . 1 . . . . Fabricator Hacks . | . . . . . . . . Repair Station Hacks 2 | . 1 . . . 1 . . Scan Component 2 | . 1 . . . 1 . . Recycling Unit Hacks 3 | . 3 . . . . . . Process 1 | . 1 . . . . . . Report Inventory 1 | . 1 . . . . . . Retrieve Matter 1 | . 1 . . . . . . Scanalyzer 6 | . . . . . 6 . . Insert Component 3 | . . . . . 3 . . Analyze 3 | . . . . . 3 . . Garrison Access Hacks 1 | . . . . . 1 . . Unlock Access 1 | . . . . . 1 . . Unauthorized Hacks 14 | . 6 . . 2 6 . . Terminals 8 | . 3 . . 2 3 . . Track 1 | . . . . 1 . . . Botnet 7 | . 3 . . 1 3 . . Fabricators . | . . . . . . . . Repair Stations 2 | . 1 . . . 1 . . Mechanics 2 | . 1 . . . 1 . . Recycling Units 2 | . 2 . . . . . . Monitor 1 | . 1 . . . . . . Recyclers 1 | . 1 . . . . . . Scanalyzers 1 | . . . . . 1 . . Extract 1 | . . . . . 1 . . Garrison Access 1 | . . . . . 1 . . Restock 1 | . . . . . 1 . . Data Cores Recovered 1 | . . . . . 1 . . Used 1 | . . . . . 1 . . Hacking Detections 13 | . 6 . . 1 6 . . Full Trace Events 7 | . 5 . . 1 1 . . Feedback Events . | . . . . . . . . Feedback Blocked . | . . . . . . . . Robot Schematics Acquired . | . . . . . . . . Robots Built . | . . . . . . . . Authchips . | . . . . . . . . Time . | . . . . . . . . Total Robot Build Rating . | . . . . . . . . Part Schematics Acquired 4 | . . . . . 4 . . Parts Built . | . . . . . . . . Authchips . | . . . . . . . . Time . | . . . . . . . . Total Part Build Rating . | . . . . . . . . Parts Repaired . | . . . . . . . . Time . | . . . . . . . . Parts Recycled . | . . . . . . . . Recycled Matter 184 | . 184 . . . . . . Retrieved Matter 184 | . 184 . . . . . . Retrieved Components . | . . . . . . . . Parts Scanalyzed 3 | . . . . . 3 . . Part Schematics Acquired 3 | . . . . . 3 . . Parts Damaged . | . . . . . . . . Bothacking | -11 -10 -10 -10 -9 -8 -8 -8 ------------ Run | Yrd Mat Min Exi Min Mat Gar Sto Used RIF Installer 1 | . . . . . . 1 . Robots Hacked . | . . . . . . . . Non-combat . | . . . . . . . . Combat . | . . . . . . . . Robot Hacks Applied . | . . . . . . . . Relay Couplers Released 9 | . . . . . . 9 . Machine Destruction 9 | . . . . . . 9 . Fabnet Peak Effective % . | . . . . . . . . Robots Rewired . | . . . . . . . . Allies Hacked . | . . . . . . . . Hacks Repelled . | . . . . . . . . Allies | -11 -10 -10 -10 -9 -8 -8 -8 -------- Run | Yrd Mat Min Exi Min Mat Gar Sto Total Allies 1 | . . 1 . . . . . Largest Group 1 | . . 1 1 . . . . Highest-Rated Group 31 | . . 31 31 . . . . Highest-Rated Ally 31 | . . 31 31 . . . . Total Orders . | . . . . . . . . Ally Attacks . | . . . . . . . . Total Damage . | . . . . . . . . Kills . | . . . . . . . . Allies Corrupted . | . . . . . . . . Allies Melted . | . . . . . . . . Intel | -11 -10 -10 -10 -9 -8 -8 -8 ------- Run | Yrd Mat Min Exi Min Mat Gar Sto Active Infowar (turns) . | . . . . . . . . Robot Analysis Total . | . . . . . . . . Derelict Logs Recovered 1 | . . 1 . . . . . Drone Launches . | . . . . . . . . Drone Recoveries . | . . . . . . . . Exploration | -11 -10 -10 -10 -9 -8 -8 -8 ------------- Run | Yrd Mat Min Exi Min Mat Gar Sto Turns Passed 5547 | 590 829 396 793 109 1042 1466 322 Spaces Moved 2462 | 64 341 217 460 36 462 803 79 Core 3 | 3 . . . . . . . Treads 2459 | 61 341 217 460 36 462 803 79 Legs . | . . . . . . . . Wheels . | . . . . . . . . Hover . | . . . . . . . . Flight . | . . . . . . . . Fastest Speed 50 | 50 160 160 160 160 160 160 160 Average Speed 161 | 154 160 160 160 160 160 160 201 Slowest Speed 240 | 160 160 160 160 160 160 160 240 Overloaded Moves . | . . . . . . . . Propulsion Burnouts . | . . . . . . . . Robots Hopped . | . . . . . . . . Potential Cave-ins 18 | . . . . . . . 18 Cave-ins Triggered 6 | . . . . . . . 6 Exploration Rate (%) 42 | 5 79 48 72 9 28 81 17 Regions Visited 7 Branch Regions 4 Pre-discovered Areas 1 | . . . 1 . . . . Known Exits Taken 2 | . 1 . . . 1 . . Unknown Exits Taken 4 | 1 . 1 1 1 . . . Scrap Searched 2 | . . 1 . 1 . . . Spaces Dug 33 | . . . . . 10 . 23 Terrain Destroyed 90 | . 10 3 . . 42 12 23 Melee 33 | . . . . . 10 . 23 Projectile . | . . . . . . . . AOE 57 | . 10 3 . . 32 12 . Terrain Rammed 11 | . . . . . . . 11 Walls Destroyed . | . . . . . . . . Machines Disabled . | . . . . . . . . Actions | -11 -10 -10 -10 -9 -8 -8 -8 --------- Run | Yrd Mat Min Exi Min Mat Gar Sto Total 3555 | 516 512 255 517 60 653 909 133 Wait 739 | 429 86 32 55 8 82 36 11 Move 2453 | 63 340 216 459 35 462 802 76 Hop . | . . . . . . . . Pick Up 26 | . 8 1 . 2 8 7 . Fast Attach 25 | 6 8 1 1 . 6 3 . Attach 11 | . 4 . . . 4 2 1 Detach 2 | . 2 . . . . . . Swap 24 | . 3 . . . 12 8 1 Drop 20 | . 2 . 1 1 9 7 . Fire 175 | 18 59 5 . 14 43 36 . Melee 66 | . . . . . 27 8 31 Ram 10 | . . . . . . . 10 Kick . | . . . . . . . . Crush . | . . . . . . . . Escape Stasis 3 | . . . . . . . 3 Rewire 1 | . . . 1 . . . . Trap . | . . . . . . . . Miscellaneous . | . . . . . . . . Route ------- -11/Scrapyard -10/Materials (discovered 3 exits: [*Mat] / *Min x2) -10/Mines (discovered 3 exits: [*Mat] / *Exi / [*Sub]) -10/Exiles -9/Mines -8/Materials -8/Garrison (discovered 4 exits: [*Sto x4]) -8/Storage History --------- Turn | Location | Event 4 | -11/Scrapyard | Discovered new exit (range 15) 591 | -11/Scrapyard | Entered Materials 592 | -10/Materials | Build established: Mutant 1174 | -10/Materials | Discovered new exit (range 15) 1332 | -10/Materials | Identified exit to Mines 1420 | -10/Materials | Entered Mines 1494 | -10/Mines | Discovered new exit (range 7) 1516 | -10/Mines | Discovered new exit (range 12) 1577 | -10/Mines | Build established: Scavenger-Mutant 1669 | -10/Mines | Learned Materials garrison access intel 1680 | -10/Mines | Received a Mining Laser from a helpful Derelict 1808 | -10/Mines | Deemed a non-threat by the Exiles lab entrance 1809 | -10/Mines | Discovered new exit (range 5) 1816 | -10/Mines | Entered Exiles 1816 | -10/Exiles | Accompanied by 1 ally 1860 | -10/Exiles | Met 8R-AWN 1893 | -10/Exiles | Met EX-HEX 2016 | -10/Exiles | Met EX-DEC 2051 | -10/Exiles | Learned location of Zion (-6) 2139 | -10/Exiles | Discovered new exit (range 14) 2243 | -10/Exiles | Met EX-BIN 2281 | -10/Exiles | Aligned with FarCom system 2283 | -10/Exiles | Given EX-Vault access code 2390 | -10/Exiles | Opened EX-Vault 2400 | -10/Exiles | Found Superbattery 2434 | -10/Exiles | Warned to stay clear of 0b10 Research branches 2609 | -10/Exiles | Left Exiles lab with Superbattery 2609 | -10/Exiles | Entered Mines 2672 | -9/Mines | Discovered new exit (range 7) 2718 | -9/Mines | Entered Materials 2718 | -8/Materials | Evolved 4 slots: Propulsion x1, Utility x3 2719 | -8/Materials | Loaded intel: 1 garrison access location 2864 | -8/Materials | Lost 3 parts (1p2w) 3615 | -8/Materials | System corruption reached 10% 3760 | -8/Materials | Identified exit to Garrison 3760 | -8/Materials | Entered Garrison 3878 | -8/Garrison | Triggered checkpoint 3881 | -8/Garrison | Triggered checkpoint 3897 | -8/Garrison | Triggered checkpoint 3920 | -8/Garrison | Triggered checkpoint 4000 | -8/Garrison | Discovered new exit (range 10) 4030 | -8/Garrison | Build established: Mutant 4036 | -8/Garrison | Triggered checkpoint 4066 | -8/Garrison | Garrison Relay disabled 4270 | -8/Garrison | Discovered new exit (range 12) 4288 | -8/Garrison | Triggered checkpoint 4436 | -8/Garrison | Garrison Relay disabled 4738 | -8/Garrison | Discovered new exit (range 11) 4748 | -8/Garrison | Discovered new exit (range 88) 4748 | -8/Garrison | Discovered new exit (range 11) 4748 | -8/Garrison | Discovered new exit (range 61) 4748 | -8/Garrison | Discovered new exit (range 36) 4772 | -8/Garrison | Triggered checkpoint 4926 | -8/Garrison | Installed Relay Interface Framework 5090 | -8/Garrison | Found Hvy. Reactive Plating 5178 | -8/Garrison | Triggered checkpoint 5226 | -8/Garrison | Entered Storage 5337 | -8/Storage | Crushed by falling debris 5346 | -8/Storage | Crushed by falling debris 5347 | -8/Storage | Core integrity fell below 50% 5377 | -8/Storage | Lost 3 parts (2n1u) 5490 | -8/Storage | Crushed by falling debris 5491 | -8/Storage | System corruption reached 30% 5516 | -8/Storage | Crushed by falling debris 5525 | -8/Storage | Crushed by falling debris 5529 | -8/Storage | Crushed by falling debris 5529 | -8/Storage | Core integrity fell below 20% 5548 | -8/Storage | Core destroyed Last Messages --------------- Med. Storage Unit destroyed. Phase Cannon crushed and broken. Relay Coupler [Swarmer] crushed and broken. Authchip [R/NC] crushed and broken. System corrupted by crushing effect (+5). The unstable cave ceiling collapses. Crushed by falling debris. Broken Lgt. Treads destroyed. System corrupted by crushing effect (+5). Broken Lgt. Treads destroyed. System corrupted by crushing effect (+4). Slammed into Earth. Destabilizing: Core damaged (-5). Slammed into Earth. Destabilizing: Core damaged (-27). RZ5YK/,IGMC#V6NGVBR5LE,:TU,/BHR Slammed into Earth. Destabilizing: Core damaged (-22). Slammed into Earth. Destabilizing: Core damaged (-27). Map ----- +----------------------------------------------------+ | ????????????????????????????????????????? | | ????????????????????????????????????????? | | ????????????????????????????????????????? | | ????????????????????????????????????????? | | ????????????????????????????????????????? | | ????????????????????????????????????????? | | ????????????????????????????????????????? | | ????????????????????????????????????????? | | ????????????????????????????????????????? | | #####???????????????????????????????????? | | ? ???????????????????????????????????? | | ? ???????????????????????????????????? | | ?==[ ???####????????????????????????????? | | ?=[[ ???# gg???g??????????????????????? | | ??[[ ???# ??????g?????????????????????? | | ?? ???+ #????????????????????????????? | | ?? ???# ##############???????????????? | | ###/#???# # #???????????????? | | # ##??# # """ """ #???????????????? | | +% #??# # """ """ #???????????????? | | # #??# / """ """ #???????????????? | | =%# #??# # % #???????????????? | | |!# #?## Y#####""T""####???????????????? | | # ### #??#"""""## ##??????????????? | | # #??############?????????????? | | " % #??????????##@#?????????????? | | ###### g #??????????####?????????????? | | ##"#???##g ##??????????###??????????????? | | #?##????# #????????????????????????????? | | #???????# #????????????????????????????? | | ????????# #????????????????????????????? | | ????????# #????????????????????????????? | | ????????+ g#????????????????????????????? | | ????????# #????????????????????????????? | | ????????# Yg???????????????????????????? | | ????????# #????????????????????????????? | | ????????? #????????????????????????????? | | ????????? ?????????????????????????????? | | ????????? ?????????????????????????????? | | ????????? ?????????????????????????????? | | ????????????????????????????????????????? | | ????????????????????????????????????????? | | ????????????????????????????????????????? | | ????????????????????????????????????????? | | ????????????????????????????????????????? | | ????????????????????????????????????????? | | | | | | | | | +----------------------------------------------------+ Best States ------------- Heat Dissipation 45 Energy Generation 14 Energy Capacity 1740 Matter Stores 300 Matter Capacity 300 Sight Range 16 Terrain Scan Density 10 Armor Coverage 600 Resistance: KI 40 Power Shielding 66 Evasion (%) 40 Recoil Reduction 3 Authchip Count 4 Item Schematics ----------------- Enh. Autogun | -8/Materials | Scanalyzed Great Maul | -8/Materials | Scanalyzed Grenade Launcher | -8/Materials | Scanalyzed Cooling System | -8/Materials | Extracted Robot Schematics ------------------ None Fabricated ------------ Nothing Repaired ---------- Nothing Alien Tech Used ----------------- None Achievements -------------- None Challenges ------------ None Game ------ Seed ProjectionSuperquantumMesh Manual? 0 Play Time 01:13:37 Cumulative 41.7 hours Start 2025.07.02 @ 00:18:11 End 2025.07.02 @ 01:45:56 Sessions 1 Manual Loads 0 Difficulty Rogue Special Mode None Game No. 26 Rogue 26 Adventurer 0 Explorer 0 Win Type - Total 0 Types 0/0/0/0/0/0/0/0/0/0 Lore% 14 Gallery% 30 Achievement% 30 Wizard Run 0 Options --------- Layout 1 ASCII 0 Keyboard 0 Movement Mouse Keybinds 0 Fullscreen 2 Font 32/SmallcapsGlow Map View 50x35 Zoom Use 0% Tactical HUD 0 Map Filters NONE Filters NONE Steam 1 RUN: d8448e62-86ac-49ec-afaf-ba12da8bfcef